bitfinex-derivatives/quotes_SOLF0:USTF0_20241017
["timestamp","ask_amount","ask_price","bid_price","bid_amount"]
[1729130506647,5.44,155.56,155.49,3.2157]
[1729130506850,5.44,155.56,155.48,13.9]
[1729130507345,3.2153,155.52,155.48,17.1159]
[1729130508243,5.44,155.56,155.48,17.1159]
[1729130511047,3.2152,155.52,155.48,17.1159]
[1729130511253,13.9,155.54,155.47,3.19563906]
[1729130511456,13.9,155.52,155.42,19.22]
[1729130511642,13.9,155.49,155.42,19.22]
[1729130511844,13.9,155.49,155.42,22.4371]
[1729130512149,13.9,155.49,155.42,19.22]
[1729130512360,5.32,155.52,155.46,3.2163]
[1729130512657,5.32,155.52,155.46,6.50094805]
[1729130512846,5.32,155.52,155.46,3.2163]
[1729130513042,13.9,155.54,155.47,3.2161]
[1729130513251,5.32,155.53,155.46,17.05757302]
[1729130513556,3.2157,155.5,155.46,17.05757302]
[1729130515347,3.2157,155.5,155.46,20.27397302]
[1729130516854,5.32,155.53,155.48,13.9]
[1729130517650,5.32,155.53,155.48,17.16492537]
[1729130517955,5.32,155.53,155.48,20.38082537]
[1729130518147,5.32,155.53,155.48,17.16492537]
[1729130519554,3.2154,155.51,155.48,17.16492537]
[1729130519958,5.32,155.53,155.48,17.16492537]
[1729130520356,5.32,155.57,155.52,13.9]
[1729130520747,3.2143,155.56,155.52,17.1151]
[1729130521157,3.2143,155.56,155.52,20.38935373]
[1729130521658,5.32,155.57,155.52,17.17425373]
[1729130521852,8.5342,155.57,155.52,17.17425373]
[1729130522459,3.2143,155.56,155.52,20.38925373]
[1729130523857,3.2148,155.54,155.52,17.17425373]
[1729130526360,3.2146,155.55,155.52,17.17425373]
[1729130526560,5.32,155.59,155.52,17.17425373]
[1729130526960,3.2145,155.56,155.52,20.38925373]
[1729130527475,1.4318,155.6,155.53,13.9]
[1729130527762,1.4318,155.6,155.52,3.27425373]
[1729130527763,6.7518,155.6,155.55,13.9]
[1729130528162,6.7518,155.6,155.53,13.9]
[1729130528367,6.7518,155.6,155.53,17.09260218]
[1729130528771,3.214,155.58,155.54,3.2146]
[1729130529561,15.2494,155.65,155.53,17.09260218]
[1729130529757,1.99,155.64,155.58,13.9]
[1729130530763,3.2129,155.63,155.59,3.2136]
[1729130530961,3.2129,155.63,155.58,13.9]
[1729130531464,3.2129,155.63,155.6,13.9]
[1729130531667,6.7097,155.65,155.6,13.9]
[1729130531963,3.2131,155.62,155.6,13.9]
[1729130533167,1.3604,155.7,155.62,3.2129]
[1729130533366,1.3246,155.71,155.63,13.9]
[1729130533573,6.6246,155.71,155.63,13.9]
[1729130534065,5.3,155.71,155.65,13.9]
[1729130534563,8.511,155.72,155.65,17.15183523]
[1729130534872,5.3,155.72,155.65,17.15183523]
[1729130535267,3.2114,155.7,155.65,20.36413523]
[1729130535772,16.6837,155.75,155.67,13.9]
[1729130536074,3.2113,155.71,155.67,13.9]
[1729130536578,3.2106,155.74,155.69,17.1115]
[1729130536963,3.2106,155.74,155.69,13.9]
[1729130537964,3.2111,155.72,155.69,13.9]
[1729130539871,3.2112,155.71,155.69,13.9]
[1729130540268,20.4719,155.77,155.69,13.9]
[1729130540476,20.4719,155.77,155.66,19.12]
[1729130540673,3.2118,155.69,155.66,19.12]
[1729130541177,3.2118,155.69,155.66,22.32646181]
[1729130541376,3.2107,155.74,155.66,22.32646181]
[1729130541580,20.4719,155.77,155.66,22.32646181]
[1729130541767,6.5719,155.77,155.66,22.32646181]
[1729130541973,3.2116,155.69,155.66,17.10646181]
[1729130543175,3.212,155.67,155.66,3.20646181]
[1729130543379,5.22,155.73,155.64,13.9]
[1729130543579,5.22,155.72,155.64,13.9]
[1729130543877,3.212,155.68,155.66,13.9]
[1729130544174,5.22,155.72,155.66,13.9]
[1729130544381,3.2116,155.69,155.66,13.9]
[1729130544679,5.22,155.72,155.66,13.9]
[1729130544882,3.2117,155.69,155.66,13.9]
[1729130546478,3.212,155.67,155.66,13.9]
[1729130546683,5.22,155.72,155.66,13.9]
[1729130546881,3.212,155.68,155.66,13.9]
[1729130547183,5.22,155.72,155.64,3.16896447]
[1729130547484,5.22,155.72,155.63,16.7766]
[1729130547783,5.22,155.72,155.66,13.9]
[1729130548283,3.2116,155.7,155.66,13.9]
[1729130548983,1.3849,155.75,155.68,13.9]
[1729130549182,5.22,155.78,155.7,13.9]
[1729130549373,1.02368392,155.77,155.7,13.9]
[1729130549685,14.92368392,155.77,155.67,1.3457]
[1729130549877,13.9,155.77,155.67,1.3457]
[1729130550072,13.9,155.75,155.65,5.22]
[1729130550279,6.5488,155.74,155.65,5.22]
[1729130550778,3.2119,155.68,155.65,5.22]
[1729130552185,6.5488,155.74,155.65,5.22]
[1729130552394,3.2121,155.67,155.65,5.22]
[1729130552685,3.2121,155.67,155.64,13.9]
[1729130553079,5.22,155.7,155.63,4.68487833]
[1729130553381,3.2127,155.64,155.63,3.23727833]
[1729130553589,5.22,155.7,155.61,1.3457]
[1729130553980,5.22,155.7,155.62,13.9]
[1729130554489,3.2115,155.7,155.66,13.9]
[1729130554785,5.22,155.74,155.68,13.9]
[1729130555288,5.22,155.74,155.69,3.16805912]
[1729130555683,13.9,155.77,155.68,13.9]
[1729130555883,5.22,155.75,155.68,13.9]
[1729130556388,3.2114,155.71,155.68,13.9]
[1729130556591,5.22,155.75,155.68,13.9]
[1729130557388,3.2116,155.7,155.68,13.9]
[1729130557690,5.22,155.75,155.68,13.9]
[1729130558693,3.2116,155.7,155.68,13.9]
[1729130559781,5.22,155.75,155.68,13.9]
[1729130559982,3.2116,155.69,155.68,13.9]
[1729130561685,3.2113,155.71,155.68,13.9]
[1729130562583,3.2114,155.7,155.69,3.1569592]
[1729130562785,19.12,155.75,155.65,1.4349]
[1729130562989,2.8806,155.74,155.65,1.4349]
[1729130563789,13.9,155.73,155.64,13.9]
[1729130564090,3.2123,155.66,155.62,23.7026]
[1729130567395,5.22,155.7,155.62,23.7026]
[1729130567592,3.2125,155.65,155.62,23.7026]
[1729130568291,5.22,155.7,155.61,3.23641151]
[1729130568489,13.9,155.69,155.58,13.9]
[1729130568691,13.9,155.67,155.58,13.9]
[1729130568897,3.2136,155.6,155.58,13.9]
[1729130569097,6.5024,155.66,155.58,13.9]
[1729130569496,3.2133,155.61,155.58,13.9]
[1729130572500,3.2135,155.6,155.58,13.9]
[1729130573195,3.2145,155.56,155.52,3.215]
[1729130573394,5.12,155.6,155.52,17.115]
[1729130573595,5.12,155.6,155.52,17.03801748]
[1729130573802,5.12,155.6,155.52,20.25311748]
[1729130574001,5.12,155.6,155.52,17.03801748]
[1729130574403,3.2144,155.56,155.52,17.03801748]
[1729130575212,3.2142,155.57,155.52,20.25301748]
[1729130576002,3.214,155.58,155.52,20.25301748]
[1729130576901,5.12,155.6,155.52,20.25301748]
[1729130577206,3.2137,155.59,155.52,20.25301748]
[1729130577905,5.12,155.6,155.55,3.2145]
[1729130578710,5.12,155.6,155.55,6.48428032]
[1729130578910,5.12,155.6,155.55,3.2145]
[1729130579510,3.2132,155.62,155.55,6.38812922]
[1729130579711,5.12,155.61,155.55,6.38812922]
[1729130581108,5.12,155.61,155.56,13.9]
[1729130581312,5.12,155.61,155.57,3.214]
[1729130581811,5.12,155.63,155.57,3.214]
[1729130582307,5.12,155.63,155.55,3.17362922]
[1729130582512,5.12,155.63,155.54,13.9]
[1729130582914,8.333,155.63,155.56,3.2141]
[1729130583308,5.12,155.63,155.54,17.15199697]
[1729130583610,3.2134,155.61,155.55,3.2145]
[1729130584507,5.12,155.63,155.56,13.9]
[1729130584907,5.12,155.63,155.58,3.2139]
[1729130586515,8.3329,155.63,155.58,3.2139]
[1729130586716,5.12,155.63,155.58,3.2139]
[1729130589516,8.333,155.63,155.56,16.6239]
[1729130590314,8.333,155.63,155.58,3.2137]
[1729130590714,5.12,155.63,155.56,16.6239]
[1729130590918,5.12,155.63,155.58,13.9]
[1729130591414,5.12,155.63,155.59,3.2136]
[1729130592014,5.12,155.64,155.6,3.2134]
[1729130592818,5.12,155.64,155.58,13.9]
[1729130593116,8.3328,155.64,155.58,3.2137]
[1729130594515,8.3328,155.64,155.59,3.2137]
[1729130595514,3.213,155.63,155.57,3.214]
[1729130595716,3.213,155.63,155.56,16.6239]
[1729130596616,8.3328,155.64,155.58,3.2138]
[1729130598018,13.9,155.72,155.6,13.9]
[1729130598218,68.9532,155.71,155.62,13.9]
[1729130598422,8.2516,155.7,155.64,3.2126]
[1729130598624,8.2516,155.7,155.64,13.9]
[1729130598930,3.211,155.73,155.67,3.212]
[1729130599227,5.04,155.72,155.67,3.212]
[1729130599422,3.2113,155.71,155.66,3.2122]
[1729130601936,3.2113,155.71,155.64,13.9]
[1729130601937,5.02,155.71,155.64,13.9]
[1729130602728,5.02,155.73,155.68,13.9]
[1729130602929,5.02,155.73,155.68,17.08809591]
[1729130603121,8.2308,155.73,155.68,20.29979591]
[1729130603623,8.2308,155.73,155.68,17.08809591]
[1729130603818,5.02,155.73,155.68,20.29989591]
[1729130604219,5.02,155.73,155.68,17.08809591]
[1729130604425,3.2111,155.72,155.68,3.18809591]
[1729130604628,3.2111,155.72,155.67,3.2119]
[1729130604826,5.02,155.73,155.68,3.20930489]
[1729130605027,3.2112,155.71,155.66,17.1122]
[1729130605326,5.02,155.73,155.66,13.9]
[1729130606415,3.2113,155.71,155.66,17.1122]
[1729130608318,3.2116,155.7,155.66,13.9]
[1729130608520,5.02,155.73,155.64,13.9]
[1729130608717,5.02,155.73,155.61,6.4404]
[1729130608926,3.2125,155.65,155.61,6.4404]
[1729130609123,3.2125,155.65,155.61,5.02]
[1729130609428,3.2126,155.65,155.61,5.02]
[1729130609630,3.2126,155.65,155.6,3.24236856]
[1729130609833,3.2126,155.65,155.58,18.92]
[1729130610331,3.2126,155.65,155.6,3.2135]
[1729130611329,18.92,155.68,155.58,22.13979434]
[1729130611525,18.92,155.68,155.59,3.2137]
[1729130612027,3.2129,155.63,155.58,25.35349434]
[1729130612423,3.2129,155.63,155.58,22.13979434]
[1729130613025,3.2134,155.61,155.58,3.21979434]
[1729130613228,5.02,155.68,155.54,13.9]
[1729130613229,18.92,155.64,155.54,13.9]
[1729130613419,18.92,155.64,155.53,2.7778]
[1729130613420,13.9,155.6,155.53,1.3412]
[1729130613627,3.2144,155.56,155.53,1.3412]
[1729130614135,3.2144,155.56,155.54,3.14211338]
[1729130614328,5.02,155.59,155.5,13.9]
[1729130614528,5.02,155.59,155.49,2.6742]
[1729130614529,13.9,155.58,155.49,2.6742]
[1729130614826,5.02,155.59,155.5,13.9]
[1729130615024,13.9,155.6,155.5,13.9]
[1729130615231,5.02,155.58,155.52,13.9]
[1729130615430,5.02,155.58,155.52,17.10606761]
[1729130616536,3.2141,155.57,155.52,20.32116761]
[1729130617528,8.2339,155.58,155.52,20.32116761]
[1729130618429,5.02,155.58,155.54,3.2146]
[1729130618629,5.02,155.58,155.52,17.10606761]
[1729130619331,3.2142,155.57,155.52,3.20606761]
[1729130619529,3.2142,155.57,155.51,13.9]
[1729130621536,3.2142,155.57,155.52,3.215]
[1729130621736,3.2142,155.57,155.52,6.36728638]
[1729130625037,3.2146,155.55,155.52,3.15228638]
[1729130625238,5.04,155.59,155.51,13.9]
[1729130625435,13.9,155.58,155.49,2.6742]
[1729130625633,3.2151,155.53,155.49,2.6742]
[1729130626139,5.04,155.54,155.49,2.6742]
[1729130626440,5.04,155.54,155.46,13.9]
[1729130626740,5.04,155.54,155.46,3.2163]
[1729130626741,18.94,155.54,155.46,3.2163]
[1729130627245,18.94,155.54,155.45,4.5875]
[1729130627632,18.94,155.54,155.45,3.2164]
[1729130627938,3.2157,155.5,155.45,3.2164]
[1729130628234,8.1957,155.5,155.45,3.2164]
[1729130628842,3.2158,155.49,155.45,3.2164]
[1729130629436,3.2161,155.48,155.44,6.51060411]
[1729130629636,4.98,155.5,155.44,3.29380411]
[1729130629833,4.98,155.5,155.42,21.6051]
[1729130630034,3.2158,155.49,155.44,3.2167]
[1729130630234,3.2158,155.49,155.44,6.4822687]
[1729130630434,3.2158,155.49,155.44,3.2167]
[1729130630840,3.2158,155.49,155.42,21.6051]
[1729130631036,3.2158,155.49,155.45,3.2166]
[1729130631234,3.2158,155.49,155.45,6.36701173]
[1729130632335,13.9,155.56,155.46,13.9]
[1729130632536,4.98,155.55,155.48,3.2159]
[1729130633042,3.2151,155.53,155.48,3.2159]
[1729130633240,3.2151,155.53,155.49,3.27382101]
[1729130633438,4.98,155.54,155.48,13.9]
[1729130633643,3.215,155.53,155.48,17.07345428]
[1729130634443,3.215,155.53,155.49,3.2157]
[1729130634743,4.98,155.54,155.48,17.07345428]
[1729130634943,4.98,155.54,155.5,3.2154]
[1729130636545,4.98,155.54,155.51,3.2152]
[1729130636939,4.98,155.54,155.5,13.9]
[1729130637335,139.65993173,155.62,155.5,13.9]
[1729130637537,6.3989,155.61,155.5,13.9]
[1729130638140,3.2143,155.57,155.52,3.2151]
[1729130640450,4.98,155.6,155.5,17.1155]
[1729130640451,3.2149,155.54,155.5,17.1155]
[1729130640746,13.9,155.6,155.5,13.9]
[1729130641051,3.2141,155.57,155.5,13.9]
[1729130641245,4.98,155.59,155.52,13.9]
[1729130641543,1.4189,155.61,155.55,13.9]
[1729130641747,4.98,155.61,155.55,13.9]
[1729130641946,4.98,155.62,155.56,13.9]
[1729130642251,8.1931,155.62,155.56,13.9]
[1729130642645,3.2133,155.61,155.57,3.214]
[1729130643751,4.98,155.62,155.56,3.16933098]
[1729130643946,13.9,155.61,155.55,1.3575]
[1729130644251,13.9,155.61,155.51,13.9]
[1729130644445,3.2142,155.57,155.52,3.215]
[1729130644854,4.98,155.58,155.52,3.215]
[1729130645755,3.2142,155.57,155.52,3.215]
[1729130646645,4.98,155.58,155.53,17.1149]
[1729130646848,4.98,155.58,155.53,13.9]
[1729130647153,4.98,155.61,155.53,13.9]
[1729130647347,3.2138,155.59,155.55,3.2144]
[1729130647754,3.2138,155.59,155.53,13.9]
[1729130648050,3.2139,155.58,155.54,3.2146]
[1729130648653,18.88,155.61,155.51,15.2575]
[1729130649251,3.2144,155.56,155.51,15.2575]
[1729130649455,20.2528,155.61,155.51,15.2575]
[1729130649754,3.2141,155.57,155.53,3.2148]
[1729130651855,20.2528,155.61,155.51,15.2575]
[1729130652056,3.2144,155.56,155.52,3.215]
[1729130652656,3.2144,155.56,155.53,3.2149]
[1729130652954,4.98,155.57,155.51,1.3575]
[1729130653256,4.98,155.57,155.49,2.7226]
[1729130653257,4.98,155.56,155.49,2.7226]
[1729130653450,4.98,155.56,155.48,3.17345428]
[1729130653659,13.9,155.55,155.45,18.88]
[1729130653959,13.9,155.55,155.45,22.08578678]
[1729130654556,3.2151,155.52,155.46,3.2162]
[1729130654759,4.98,155.53,155.45,22.08578678]
[1729130655059,18.88,155.53,155.45,3.20578678]
[1729130655257,3.2161,155.48,155.43,17.1169]
[1729130655554,18.88,155.53,155.43,17.1169]
[1729130655751,3.2155,155.5,155.43,20.38901875]
[1729130655948,18.88,155.53,155.43,20.38901875]
[1729130656350,3.2161,155.48,155.43,20.38901875]
[1729130656552,18.88,155.53,155.45,3.2165]
[1729130657046,3.2157,155.5,155.45,3.2165]
[1729130657756,3.2158,155.49,155.44,3.2166]
[1729130657954,3.2158,155.49,155.43,17.17211875]
[1729130658153,18.88,155.53,155.43,17.17211875]
[1729130658460,3.2164,155.47,155.43,3.27211875]
[1729130658653,3.2164,155.47,155.42,7.2248]
[1729130659151,4.98,155.48,155.42,4.56574968]
[1729130659461,18.88,155.48,155.42,4.56574968]
[1729130659852,3.2166,155.45,155.42,4.56574968]
[1729130660056,18.88,155.48,155.42,4.56574968]
[1729130660750,3.2167,155.45,155.42,4.56574968]
[1729130661351,3.2168,155.44,155.42,4.56574968]
[1729130661557,3.2168,155.44,155.42,3.25194968]
[1729130661850,3.2168,155.44,155.4,3.2175]
[1729130662056,3.2171,155.43,155.41,3.15838589]
[1729130662257,3.2171,155.43,155.38,9.641]
[1729130662452,18.88,155.48,155.38,6.4231]
[1729130663054,3.2167,155.45,155.4,3.2176]
[1729130663557,3.2168,155.44,155.4,3.2176]
[1729130664158,3.2168,155.44,155.41,3.19591941]
[1729130664358,3.2168,155.44,155.4,3.2176]
[1729130664751,18.88,155.48,155.41,3.19624123]
[1729130664953,18.88,155.48,155.38,1.4431]
[1729130665155,13.9,155.46,155.38,1.4431]
[1729130665449,3.2175,155.41,155.38,1.4431]
[1729130666758,8.1971,155.43,155.39,3.2178]
[1729130667359,8.1971,155.43,155.38,4.661]
[1729130667553,8.1971,155.43,155.38,1.4431]
[1729130667860,13.9,155.46,155.38,4.661]
[1729130668053,4.98,155.45,155.39,13.9]
[1729130668249,4.98,155.46,155.39,13.9]
[1729130668660,4.98,155.46,155.38,1.4431]
[1729130668855,3.2169,155.44,155.39,3.2177]
[1729130669159,4.98,155.46,155.39,3.2177]
[1729130669558,3.217,155.43,155.39,3.2177]
[1729130671066,4.98,155.46,155.38,1.4431]
[1729130671364,3.2174,155.41,155.38,4.6611]
[1729130671565,6.4233,155.46,155.38,1.4431]
[1729130671759,13.9,155.45,155.38,1.4431]
[1729130672363,3.2178,155.4,155.38,1.4431]
[1729130672663,4.98,155.42,155.38,1.4431]
[1729130673264,3.2178,155.4,155.38,1.4431]
[1729130673465,3.2178,155.4,155.37,1.4026]
[1729130673665,4.98,155.42,155.34,21.6401]
[1729130674263,3.2177,155.4,155.36,3.2183]
[1729130674656,4.98,155.42,155.34,21.6401]
[1729130675063,3.2175,155.41,155.37,3.2181]
[1729130675268,4.98,155.42,155.37,3.2181]
[1729130676473,3.2178,155.4,155.37,3.2181]
[1729130678373,4.98,155.42,155.34,21.6401]
[1729130678573,3.2176,155.4,155.36,3.2183]
[1729130679773,3.2177,155.4,155.37,3.2182]
[1729130680870,5.0,155.43,155.36,13.9]
[1729130681668,3.2173,155.42,155.38,3.2179]
[1729130682064,3.2173,155.42,155.36,13.9]
[1729130682264,3.2173,155.42,155.39,3.2178]
[1729130683371,3.2171,155.43,155.39,3.2178]
[1729130684472,3.2168,155.44,155.4,3.2175]
[1729130684776,5.0,155.45,155.38,1.3869]
[1729130685577,3.2174,155.42,155.38,4.6048]
[1729130687573,18.9,155.45,155.38,1.3869]
[1729130687879,3.2172,155.43,155.39,3.2177]
[1729130688178,5.0,155.45,155.38,15.2869]
[1729130688481,3.2168,155.44,155.41,3.2174]
[1729130688677,3.2168,155.44,155.41,6.41492848]
[1729130689981,3.2168,155.44,155.41,15.31492848]
[1729130691678,3.2168,155.44,155.42,8.9]
[1729130691980,8.9,155.46,155.42,8.9]
[1729130692180,3.2167,155.45,155.42,8.9]
[1729130693277,4.98,155.46,155.43,3.2169]
[1729130693684,4.98,155.46,155.42,8.9]
[1729130693882,8.1966,155.46,155.42,12.1171]
[1729130694082,17.0966,155.46,155.42,12.1171]
[1729130695478,13.88,155.46,155.42,8.9]
[1729130695784,3.2166,155.45,155.42,8.9]
[1729130699682,8.9,155.47,155.42,8.9]
[1729130699983,3.2162,155.47,155.43,12.1169]
[1729130700376,3.2167,155.45,155.43,3.16084186]
[1729130700578,3.2167,155.45,155.42,1.4219]
[1729130701183,3.2167,155.45,155.42,4.68797453]
[1729130701387,3.2167,155.45,155.42,13.58797453]
[1729130702490,1.3984,155.5,155.44,8.9]
[1729130702689,224.0,155.6,155.49,8.9]
[1729130702890,8.9,155.54,155.49,8.9]
[1729130703091,3.2155,155.51,155.49,8.9]
[1729130703283,8.9,155.52,155.47,8.9]
[1729130704487,4.98,155.53,155.47,8.9]
[1729130704791,13.88,155.53,155.48,8.9]
[1729130706088,13.88,155.53,155.44,1.4123]
[1729130706295,8.9,155.52,155.47,8.9]
[1729130707095,3.2159,155.49,155.47,8.9]
[1729130707791,4.98,155.51,155.48,8.9]
[1729130707999,13.88,155.53,155.48,8.9]
[1729130708290,13.88,155.53,155.49,8.9]
[1729130708488,3.2153,155.52,155.49,8.9]
[1729130708891,8.9,155.55,155.5,8.9]
[1729130709094,4.98,155.55,155.52,8.9]
[1729130709391,8.9,155.54,155.46,4.98]
[1729130709594,3.2153,155.51,155.5,3.27823065]
[1729130710088,3.2159,155.49,155.46,8.9]
[1729130710285,4.98,155.51,155.46,8.9]
[1729130712393,4.98,155.51,155.48,8.9]
[1729130713193,3.2153,155.52,155.48,8.9]
[1729130714488,3.215,155.53,155.49,8.9]
[1729130715195,3.2152,155.52,155.49,8.9]
[1729130717300,3.2152,155.52,155.48,3.2159]
[1729130717494,8.9,155.56,155.5,8.9]
[1729130717697,3.2148,155.54,155.51,8.9]
[1729130717894,4.98,155.55,155.51,8.9]
[1729130718193,3.2151,155.53,155.5,3.27232372]
[1729130718393,8.9,155.53,155.48,8.9]
[1729130718795,3.2152,155.52,155.48,8.9]
[1729130718987,8.9,155.53,155.48,8.9]
[1729130719699,3.2154,155.51,155.48,8.9]
[1729130721096,4.98,155.55,155.45,4.98]
[1729130721301,3.215,155.53,155.51,8.9]
[1729130721501,3.215,155.53,155.52,3.16468317]
[1729130721701,4.98,155.55,155.51,8.9]
[1729130721896,8.1947,155.55,155.53,8.9]
[1729130722103,4.98,155.55,155.53,3.25915395]
[1729130722304,3.2153,155.51,155.5,8.9]
[1729130722503,3.2153,155.51,155.5,3.14818897]
[1729130722796,3.2153,155.51,155.44,1.4123]
[1729130722797,3.2159,155.49,155.46,8.9]
[1729130725001,3.2159,155.49,155.47,8.9]
[1729130728611,3.2157,155.5,155.48,8.9]
[1729130729409,8.1954,155.51,155.48,8.9]
[1729130729708,4.98,155.53,155.48,12.1159]
[1729130729905,4.98,155.53,155.5,8.9]
[1729130730106,4.98,155.53,155.5,12.17372714]
[1729130730511,3.2147,155.54,155.52,8.9]
[1729130732509,4.98,155.55,155.52,8.9]
[1729130733105,4.98,155.55,155.51,8.9]
[1729130733306,3.2148,155.54,155.51,8.9]
[1729130735406,3.215,155.53,155.51,8.9]
[1729130735607,4.98,155.55,155.5,3.27372714]
[1729130735810,8.9,155.54,155.48,8.9]
[1729130736209,4.98,155.55,155.46,8.9]
[1729130736210,3.2161,155.48,155.46,8.9]
[1729130738318,13.88,155.51,155.44,1.4123]
[1729130738524,3.2168,155.44,155.42,13.58797453]
[1729130738723,8.9,155.47,155.42,13.58797453]
[1729130739015,8.9,155.47,155.42,4.68797453]
[1729130739220,13.88,155.47,155.42,4.68797453]
[1729130739736,3.217,155.44,155.42,4.68797453]
[1729130740229,8.9,155.43,155.34,2.7061]
[1729130740447,3.2179,155.39,155.37,8.9]
[1729130740635,3.2179,155.39,155.36,8.9]
[1729130741820,8.9,155.4,155.35,1.4395]
[1729130742119,13.88,155.39,155.35,1.4395]
[1729130742328,3.2184,155.36,155.35,1.4395]
[1729130743122,3.2182,155.38,155.35,10.3395]
[1729130743618,3.2178,155.4,155.37,8.9]
[1729130743824,3.2178,155.4,155.38,8.9]
[1729130745620,4.98,155.41,155.38,8.9]
[1729130746625,17.0976,155.41,155.37,8.9]
[1729130747832,8.1976,155.41,155.38,8.9]
[1729130750137,8.1976,155.41,155.37,8.9]
[1729130751139,3.2176,155.41,155.37,8.9]
[1729130754542,4.98,155.44,155.4,8.9]
[1729130754741,4.98,155.44,155.35,6.4195]
[1729130754742,4.98,155.44,155.41,12.06176844]
[1729130754942,4.98,155.44,155.41,8.9]
[1729130755539,4.98,155.44,155.41,12.1692853]
[1729130755745,3.2171,155.43,155.41,12.1692853]
[1729130759834,2.518,155.49,155.42,8.9]
[1729130759835,3.2168,155.44,155.42,8.9]
[1729130760038,4.98,155.48,155.43,8.9]
[1729130760348,4.98,155.48,155.45,8.9]
[1729130760540,4.98,155.48,155.45,12.16403646]
[1729130760541,3.2164,155.47,155.45,12.16403646]
[1729130760845,3.2164,155.47,155.45,3.26403646]
[1729130761040,195.31511375,155.5,155.46,8.9]
[1729130761242,1.4338,155.54,155.48,8.9]
[1729130761446,4.98,155.53,155.48,8.9]
[1729130761646,4.98,155.53,155.5,8.9]
[1729130761847,3.2153,155.52,155.47,13.9]
[1729130762241,3.2153,155.52,155.47,17.1161]
[1729130762442,4.98,155.53,155.47,17.1161]
[1729130762643,4.98,155.53,155.45,13.9]
[1729130763045,3.2163,155.47,155.43,13.9]
[1729130763244,13.9,155.51,155.42,6.03468674]
[1729130763451,13.9,155.49,155.42,4.58468674]
[1729130763751,13.9,155.53,155.42,3.24388674]
[1729130763752,3.217,155.43,155.42,3.24388674]
[1729130764048,13.9,155.47,155.37,13.9]
[1729130764049,3.2174,155.42,155.37,13.9]
[1729130765840,3.2175,155.41,155.37,13.9]
[1729130767044,3.2176,155.4,155.37,13.9]
[1729130767550,3.2179,155.39,155.36,4.98]
[1729130767940,18.88,155.45,155.36,4.98]
[1729130768150,18.88,155.45,155.36,3.2183]
[1729130768850,18.88,155.45,155.35,22.9196]
[1729130769046,13.9,155.41,155.35,2.6221]
[1729130769253,4.98,155.4,155.31,13.9]
[1729130769853,13.9,155.39,155.31,3.16727299]
[1729130770046,13.9,155.39,155.29,22.0998]
[1729130770047,3.2191,155.33,155.29,22.0998]
[1729130770240,4.98,155.36,155.29,17.05332921]
[1729130770445,3.2191,155.33,155.29,17.05332921]
[1729130770754,4.98,155.36,155.29,17.05332921]